bitfinex/quotes_BTCUSD_20241110
["timestamp","ask_amount","ask_price","bid_price","bid_amount"]
[1731200781953,0.25621515,76889.0,76883.0,0.000835]
[1731200782904,0.20388073,76889.0,76883.0,0.000835]
[1731200784237,0.002,76886.0,76883.0,0.000835]
[1731200784444,0.07,76885.0,76883.0,0.000835]
[1731200785456,0.1016,76884.0,76883.0,0.000835]
[1731200786090,0.20588073,76875.0,76874.0,0.000835]
[1731200786291,0.685109,76875.0,76874.0,0.000835]
[1731200786502,0.002,76871.0,76870.0,0.000834]
[1731200786697,0.20588073,76871.0,76870.0,0.000834]
[1731200786895,0.22888073,76871.0,76870.0,0.000834]
[1731200787119,0.22688073,76871.0,76870.0,0.000834]
[1731200787519,0.20388073,76871.0,76870.0,0.000834]
[1731200787725,0.660109,76875.0,76870.0,0.000834]
[1731200787966,0.002,76872.0,76870.0,0.000834]
[1731200788208,0.660109,76875.0,76870.0,0.000834]
[1731200788624,0.71222604,76875.0,76870.0,0.000834]
[1731200788830,0.660109,76875.0,76870.0,0.000834]
[1731200790257,0.20588073,76871.0,76870.0,0.000834]
[1731200790459,0.20388073,76871.0,76870.0,0.000834]
[1731200791727,0.20588073,76871.0,76870.0,0.000834]
[1731200792167,0.20388073,76871.0,76870.0,0.000834]
[1731200792551,0.20588073,76871.0,76870.0,0.000834]
[1731200793242,0.20388073,76871.0,76870.0,0.000834]
[1731200793402,0.86398973,76878.0,76870.0,0.000834]
[1731200794431,0.660109,76878.0,76870.0,0.000834]
[1731200794689,0.660109,76878.0,76870.0,0.083634]
[1731200795222,0.660109,76878.0,76872.0,0.005]
[1731200795883,0.660109,76878.0,76873.0,0.00343853]
[1731200796233,0.660109,76878.0,76870.0,0.083634]
[1731200796467,0.660109,76878.0,76870.0,0.000834]
[1731200796665,0.660109,76877.0,76871.0,0.00343887]
[1731200796870,0.660109,76877.0,76870.0,0.000834]
[1731200800034,0.660109,76877.0,76872.0,0.005]
[1731200800513,0.660109,76877.0,76871.0,0.005]
[1731200800719,0.660109,76877.0,76872.0,0.005]
[1731200802599,0.660109,76876.0,76872.0,0.005]
[1731200803031,0.660109,76876.0,76872.0,0.005835]
[1731200804405,0.65955666,76876.0,76872.0,0.005835]
[1731200805912,0.002,76907.0,76881.0,0.005]
[1731200806135,0.002,76907.0,76877.0,0.005]
[1731200806136,0.6819,76906.0,76883.0,0.005]
[1731200806340,0.6819,76906.0,76883.0,0.01]
[1731200806701,0.20388073,76908.0,76883.0,0.01]
[1731200806702,0.20388073,76901.0,76884.0,0.0789]
[1731200807448,0.002,76899.0,76884.0,0.0789]
[1731200807863,0.002,76898.0,76885.0,0.00342499]
[1731200808543,0.6819,76907.0,76885.0,0.00342499]
[1731200808544,0.20388073,76894.0,76885.0,0.00342499]
[1731200809010,0.20388073,76894.0,76872.0,0.000835]
[1731200809011,0.002,76876.0,76872.0,0.000835]
[1731200809254,0.6819,76875.0,76872.0,0.000835]
[1731200809720,0.002,76873.0,76872.0,0.000835]
[1731200809930,0.6839,76873.0,76872.0,0.000835]
[1731200810351,0.7069,76873.0,76872.0,0.000835]
[1731200811931,0.76080425,76873.0,76872.0,0.000835]
[1731200813037,0.75880425,76873.0,76872.0,0.000835]
[1731200813252,0.76080425,76873.0,76872.0,0.000835]
[1731200815935,0.73780425,76873.0,76872.0,0.000835]
[1731200816570,0.73580425,76873.0,76872.0,0.000835]
[1731200817231,0.6819,76873.0,76872.0,0.000835]
[1731200819020,0.00167,76875.0,76872.0,0.000835]
[1731200826938,0.00167,76875.0,76873.0,0.0784]
[1731200827396,0.00167,76875.0,76874.0,0.02414011]
[1731200829204,0.68357,76875.0,76874.0,0.02414011]
[1731200832934,0.73547123,76875.0,76874.0,0.02414011]
[1731200833364,0.73547123,76875.0,76872.0,0.000835]
[1731200833609,0.73747123,76875.0,76873.0,0.02414469]
[1731200833845,0.73547123,76875.0,76872.0,0.000835]
[1731200835105,0.6819,76874.0,76872.0,0.000835]
[1731200837108,0.002,76873.0,76872.0,0.000835]
[1731200837315,0.7049,76873.0,76872.0,0.000835]
[1731200837534,0.7069,76873.0,76872.0,0.000835]
[1731200844389,0.7069,76873.0,76870.0,0.000834]
[1731200844390,0.22888073,76871.0,76870.0,0.000834]
[1731200844612,0.002,76865.0,76864.0,0.001472]
[1731200844849,0.025,76865.0,76864.0,0.001472]
[1731200845519,0.025,76865.0,76852.0,0.001472]
[1731200845520,0.002,76854.0,76852.0,0.001472]
[1731200845769,0.47986146,76854.0,76852.0,0.001472]
[1731200845993,0.47986146,76854.0,76829.0,0.0752]
[1731200845994,0.002,76837.0,76829.0,0.0752]
[1731200846199,0.123,76853.0,76818.0,0.0463]
[1731200846200,0.22688073,76832.0,76819.0,0.0752]
[1731200846432,0.22888073,76832.0,76819.0,0.0752]
[1731200847061,0.20388073,76832.0,76819.0,0.0802]
[1731200847275,0.20388073,76832.0,76821.0,0.005]
[1731200847477,0.20388073,76832.0,76819.0,0.0802]
[1731200847478,0.20588073,76832.0,76819.0,0.0802]
[1731200847706,0.20388073,76832.0,76819.0,0.0802]
[1731200847932,0.20388073,76832.0,76819.0,0.0752]
[1731200848164,0.20588073,76832.0,76819.0,0.0752]
[1731200848395,0.22888073,76832.0,76819.0,0.0752]
[1731200848597,0.22888073,76832.0,76819.0,0.0802]
[1731200848598,0.20388073,76832.0,76819.0,0.0802]
[1731200850078,0.88494673,76832.0,76819.0,0.0802]
[1731200850652,0.681066,76832.0,76823.0,0.005]
[1731200850868,0.681066,76832.0,76831.0,0.076672]
[1731200851077,0.681066,76832.0,76831.0,0.132972]
[1731200851456,0.681066,76832.0,76831.0,0.13633973]
[1731200854791,0.681066,76832.0,76831.0,0.00483973]
[1731200854990,0.706066,76832.0,76831.0,0.00483973]
[1731200855142,0.706066,76832.0,76831.0,0.001472]
[1731200856758,0.704066,76832.0,76831.0,0.001472]
[1731200856969,0.706066,76832.0,76831.0,0.001472]
[1731200857179,0.75670711,76832.0,76831.0,0.001472]
[1731200857383,0.681066,76832.0,76831.0,0.001472]
[1731200859151,0.681066,76832.0,76831.0,0.00473629]
[1731200859384,0.681066,76832.0,76831.0,0.001472]
[1731200859592,0.681066,76832.0,76831.0,0.00473629]
[1731200861002,0.681066,76832.0,76831.0,0.04332742]
[1731200861210,0.704066,76832.0,76831.0,0.001472]
[1731200862017,0.706066,76832.0,76831.0,0.001472]
[1731200862230,0.704066,76832.0,76831.0,0.001472]
[1731200863088,0.75683857,76832.0,76831.0,0.001472]
[1731200863702,0.75883857,76832.0,76831.0,0.001472]
[1731200865367,0.75683857,76832.0,76831.0,0.001472]
[1731200866845,0.73383857,76832.0,76831.0,0.001472]
[1731200868071,0.681066,76832.0,76831.0,0.001472]
[1731200868275,0.681066,76832.0,76831.0,0.04016236]
[1731200870166,0.88494673,76832.0,76831.0,0.04016236]
[1731200870404,0.90994673,76832.0,76831.0,0.001472]
[1731200871113,0.96336759,76832.0,76831.0,0.001472]
[1731200873153,0.75948686,76832.0,76831.0,0.001472]
[1731200873379,0.96336759,76832.0,76831.0,0.001472]
[1731200874494,0.96136759,76832.0,76831.0,0.001472]
[1731200874679,0.96136759,76832.0,76831.0,0.04024379]
[1731200875128,0.96336759,76832.0,76831.0,0.04024379]
[1731200875750,0.96136759,76832.0,76831.0,0.04024379]
[1731200876700,0.96136759,76832.0,76831.0,0.04024824]
[1731200881308,0.96136759,76832.0,76831.0,0.11994824]
[1731200881309,0.93836759,76832.0,76831.0,0.11994824]
[1731200882595,0.93836759,76832.0,76831.0,0.04024824]
[1731200882799,0.002,76817.0,76816.0,0.000835]
[1731200883001,0.88694673,76817.0,76816.0,0.000835]
[1731200883209,0.88694673,76817.0,76816.0,0.00493758]
[1731200883444,0.88694673,76817.0,76816.0,0.000835]
[1731200883652,0.88494673,76817.0,76816.0,0.000835]
[1731200885849,0.93888867,76817.0,76816.0,0.000835]
[1731200887242,0.88494673,76817.0,76816.0,0.000835]
[1731200891399,0.88494673,76817.0,76809.0,0.001472]
[1731200891400,0.002,76812.0,76809.0,0.001472]
[1731200891598,0.025,76812.0,76809.0,0.001472]
[1731200894699,0.002,76810.0,76809.0,0.001472]
[1731200894856,0.22888073,76810.0,76809.0,0.001472]
[1731200895287,0.22888073,76810.0,76797.0,0.001472]
[1731200895288,0.023,76798.0,76797.0,0.001472]
[1731200895487,0.90353073,76798.0,76797.0,0.001472]
[1731200897013,0.88053073,76798.0,76797.0,0.001472]
[1731200897903,0.93667358,76798.0,76797.0,0.001472]
[1731200898122,0.95767358,76798.0,76797.0,0.001472]
[1731200899182,0.93467358,76798.0,76797.0,0.001472]
[1731200899388,0.88053073,76798.0,76797.0,0.001472]
[1731200899596,0.1,76816.0,76797.0,0.131672]
[1731200899597,0.67665,76809.0,76797.0,0.131672]
[1731200899793,0.20388073,76801.0,76797.0,0.081772]
[1731200900008,0.20388073,76801.0,76798.0,0.00423898]
[1731200900225,0.002,76800.0,76798.0,0.00423898]
[1731200901096,0.025,76799.0,76798.0,0.00423898]
[1731200901339,0.023,76800.0,76798.0,0.00423898]
[1731200901949,0.20388073,76801.0,76798.0,0.00423898]
[1731200903417,0.67665,76800.0,76798.0,0.00423898]
[1731200903831,0.67665,76800.0,76797.0,0.001472]
[1731200905683,0.67665,76800.0,76799.0,0.1402]
[1731200906339,0.67665,76800.0,76799.0,0.1444672]
[1731200908848,0.67665,76812.0,76805.0,0.005]
[1731200909088,0.67665,76812.0,76805.0,0.0903]
[1731200909089,0.001672,76806.0,76805.0,0.0903]
[1731200912512,0.001672,76806.0,76805.0,0.0803]
[1731200912787,0.001672,76806.0,76799.0,0.1346]
[1731200913001,0.20388073,76801.0,76799.0,0.1346]
[1731200913338,0.20388073,76801.0,76800.0,0.005]
[1731200913555,0.20388073,76801.0,76799.0,0.1296]
[1731200913772,0.20388073,76801.0,76800.0,0.02928795]
[1731200914181,0.20388073,76801.0,76800.0,0.02928696]
[1731200915725,0.20388073,76801.0,76800.0,0.03353119]
[1731200915954,0.20388073,76801.0,76800.0,0.02853119]
[1731200916948,0.20388073,76801.0,76800.0,0.00424423]
[1731200918186,0.88053073,76801.0,76800.0,0.00424423]
[1731200918384,0.88053073,76801.0,76799.0,0.0797]
[1731200918757,0.67665,76801.0,76799.0,0.0797]
[1731200918983,0.67665,76801.0,76800.0,0.02929078]
[1731200919687,0.88053073,76801.0,76800.0,0.02429078]
[1731200920783,0.88053073,76801.0,76800.0,0.02429994]
[1731200921227,0.88053073,76801.0,76800.0,0.02513594]
[1731200923965,0.20388073,76801.0,76800.0,0.0251369]
[1731200924624,0.22888073,76801.0,76800.0,0.000836]
[1731200925047,0.22688073,76801.0,76800.0,0.000836]
[1731200926580,0.20388073,76801.0,76800.0,0.000836]
[1731200927058,0.88053073,76801.0,76800.0,0.000836]
[1731200927263,0.90353073,76801.0,76800.0,0.000836]
[1731200929171,0.90553073,76801.0,76800.0,0.000836]
[1731200929968,0.90353073,76801.0,76800.0,0.000836]
[1731200930124,0.88053073,76801.0,76800.0,0.000836]
[1731200934727,0.90553073,76801.0,76800.0,0.000836]
[1731200936955,0.90353073,76801.0,76800.0,0.000836]
[1731200937970,0.88053073,76801.0,76800.0,0.000836]
[1731200938908,0.88053073,76801.0,76800.0,0.081336]
[1731200940628,0.88053073,76801.0,76800.0,0.10564937]
[1731200941088,0.88053073,76801.0,76800.0,0.081336]
[1731200941235,0.88053073,76801.0,76800.0,0.10565379]
[1731200946412,0.88053073,76801.0,76800.0,0.02515379]
[1731200946913,0.90553073,76801.0,76800.0,0.000836]
[1731200947147,0.90353073,76801.0,76800.0,0.000836]
[1731200948391,0.88053073,76801.0,76800.0,0.000836]
[1731200948803,0.88053073,76801.0,76800.0,0.025183]
[1731200949437,0.88053073,76801.0,76800.0,0.105683]
[1731200950291,0.88053073,76801.0,76800.0,0.1056894]
[1731200951395,0.88053073,76801.0,76800.0,0.0251894]
[1731200951615,0.88253073,76801.0,76800.0,0.0251894]
[1731200951831,0.88053073,76801.0,76800.0,0.0251894]
[1731200952475,0.88253073,76801.0,76800.0,0.0251894]
[1731200952887,0.90553073,76801.0,76800.0,0.0251894]
[1731200953723,0.90553073,76801.0,76800.0,0.02520359]
[1731200953932,0.90553073,76801.0,76800.0,0.000836]
[1731200954137,0.90353073,76801.0,76800.0,0.000836]
[1731200954338,0.90553073,76801.0,76800.0,0.000836]
[1731200956635,0.91772211,76801.0,76800.0,0.000836]
[1731200960624,0.90553073,76801.0,76800.0,0.000836]
[1731200961052,0.9177193,76801.0,76800.0,0.000836]
[1731200961694,0.90553073,76801.0,76800.0,0.000836]
[1731200961909,0.91771917,76801.0,76800.0,0.000836]
[1731200964262,1.01771917,76801.0,76800.0,0.000836]
[1731200964497,1.01771917,76801.0,76797.0,0.001472]
[1731200964498,0.002,76798.0,76797.0,0.001472]
[1731200964771,0.025,76798.0,76797.0,0.001472]
[1731200965005,0.06562898,76798.0,76797.0,0.001472]
[1731200965471,0.125,76798.0,76797.0,0.001472]
[1731200966357,0.025,76798.0,76797.0,0.001472]
[1731200968359,0.07776392,76798.0,76797.0,0.001472]
[1731200968607,0.80165,76798.0,76797.0,0.001472]
[1731200969061,0.69965,76798.0,76797.0,0.001472]
[1731200969510,0.69965,76798.0,76796.0,0.0811]
[1731200969511,0.67665,76798.0,76796.0,0.043602]
[1731200972382,0.67665,76798.0,76795.0,0.001472]
[1731200972854,0.67665,76798.0,76783.0,0.005]
[1731200972855,0.023,76777.0,76753.0,0.0776]
[1731200973043,0.023,76777.0,76753.0,0.0826]
[1731200973044,0.22688073,76772.0,76753.0,0.0826]
[1731200973265,0.22688073,76772.0,76757.0,0.005]
[1731200973715,0.22688073,76772.0,76754.0,0.006472]
[1731200973716,0.32688073,76772.0,76754.0,0.001472]
[1731200973925,0.22688073,76755.0,76754.0,0.001472]
[1731200974147,0.90353073,76755.0,76754.0,0.001472]
[1731200974387,0.90553073,76755.0,76754.0,0.001472]
[1731200974838,0.90353073,76755.0,76754.0,0.001472]
[1731200981028,0.95650805,76755.0,76754.0,0.001472]
[1731200983945,0.023,76754.0,76743.0,0.0776]
[1731200984160,0.023,76754.0,76739.0,0.001474]
[1731200984161,0.002,76753.0,76739.0,0.001474]
[1731200984581,0.025,76753.0,76739.0,0.001474]
[1731200985279,0.53076146,76740.0,76739.0,0.001474]
[1731200985455,0.53076146,76740.0,76734.0,0.001474]
[1731200985456,1.20941146,76740.0,76734.0,0.001474]
[1731200985673,0.20388073,76732.0,76731.0,0.0004]
[1731200985884,0.32888073,76732.0,76731.0,0.0004]
[1731200986560,0.023,76726.0,76714.0,0.0793]
[1731200986765,0.22688073,76724.0,76714.0,0.0793]
[1731200987387,0.20388073,76724.0,76714.0,0.0793]
[1731200987838,0.20388073,76738.0,76718.0,0.011474]
[1731200988046,0.1,76737.0,76722.0,0.005]
[1731200988693,0.20388073,76731.0,76722.0,0.005]
[1731200988913,0.023,76738.0,76723.0,0.006474]
[1731200989150,0.023,76738.0,76724.0,0.0496]
[1731200989559,0.023,76738.0,76724.0,0.0546]
[1731200989965,0.07585861,76738.0,76724.0,0.0546]
[1731200990184,0.002,76733.0,76724.0,0.0496]
[1731200990395,0.20388073,76731.0,76724.0,0.0546]
[1731200990599,0.20388073,76731.0,76723.0,0.001474]
[1731200990808,0.023,76730.0,76723.0,0.001474]
[1731200991020,0.023,76728.0,76723.0,0.001474]
[1731200992246,0.67665,76727.0,76723.0,0.001474]
[1731200992909,0.002,76726.0,76723.0,0.001474]
[1731200993163,0.67665,76727.0,76723.0,0.001474]
[1731200993371,0.002,76724.0,76723.0,0.001474]
[1731200993970,0.023,76726.0,76723.0,0.001474]
[1731200995700,0.67665,76727.0,76723.0,0.001474]
[1731200997865,0.002,76726.0,76723.0,0.001474]
[1731200998091,0.023,76725.0,76723.0,0.001474]
[1731200998310,0.69965,76725.0,76723.0,0.001474]
[1731200998721,0.002,76724.0,76723.0,0.001474]
[1731200998931,0.025,76724.0,76723.0,0.001474]
[1731200999825,0.123,76724.0,76723.0,0.001474]
[1731201002757,0.67665,76725.0,76723.0,0.001474]
[1731201002972,0.67665,76725.0,76724.0,0.0824]
[1731201004316,0.67665,76725.0,76723.0,0.001474]
[1731201004557,0.025,76724.0,76723.0,0.001474]
[1731201004759,0.125,76724.0,76723.0,0.001474]
[1731201005855,0.123,76724.0,76723.0,0.001474]
[1731201007144,0.125,76724.0,76723.0,0.001474]
[1731201007763,0.123,76724.0,76723.0,0.001474]
[1731201008500,0.1,76724.0,76723.0,0.001474]
[1731201008728,0.67665,76725.0,76723.0,0.001474]
[1731201008954,0.67665,76725.0,76724.0,0.0824]
[1731201012697,0.67665,76725.0,76724.0,0.0874]
[1731201014578,0.67665,76725.0,76723.0,0.001474]
[1731201015059,0.023,76724.0,76723.0,0.001474]
[1731201015633,0.67665,76725.0,76723.0,0.001474]
[1731201015979,0.67665,76724.0,76723.0,0.001474]
[1731201016452,0.69965,76724.0,76723.0,0.001474]
[1731201018711,0.67665,76724.0,76723.0,0.001474]
[1731201022117,0.69965,76724.0,76723.0,0.001474]
[1731201025176,0.70165,76724.0,76723.0,0.001474]
[1731201025743,0.79965,76724.0,76723.0,0.001474]
[1731201025957,0.80165,76724.0,76723.0,0.001474]
[1731201026192,0.79965,76724.0,76723.0,0.001474]
[1731201026624,0.102,76719.0,76718.0,0.001474]
[1731201026837,0.125,76719.0,76718.0,0.001474]
[1731201028821,0.13717116,76719.0,76718.0,0.001474]
[1731201029529,0.18893022,76719.0,76718.0,0.001474]
[1731201029721,0.18693022,76719.0,76718.0,0.001474]
[1731201029927,0.17475906,76719.0,76718.0,0.001474]
[1731201030131,0.05175906,76719.0,76718.0,0.001474]
[1731201030464,0.673702,76720.0,76718.0,0.001474]
[1731201030674,0.673702,76719.0,76718.0,0.001474]
[1731201032284,0.1,76727.0,76718.0,0.006474]
[1731201032488,0.1,76727.0,76720.0,0.005]
[1731201032690,0.673702,76728.0,76720.0,0.005]
[1731201032926,0.673702,76726.0,76721.0,0.0773]
[1731201033342,0.673702,76726.0,76724.0,0.005]
[1731201036837,0.673702,76730.0,76724.0,0.005]
[1731201037553,0.673702,76730.0,76728.0,0.005]
[1731201037789,0.673702,76736.0,76730.0,0.005]
[1731201038002,0.00167,76737.0,76730.0,0.015]
[1731201038216,0.00167,76737.0,76730.0,0.09640625]
[1731201038422,0.00167,76737.0,76730.0,0.17265163]
[1731201038648,0.00167,76737.0,76730.0,0.17004538]
[1731201039989,0.00167,76737.0,76736.0,0.1407]
[1731201040234,0.00167,76737.0,76736.0,0.16504538]
[1731201040450,0.00167,76737.0,76736.0,0.16501766]
[1731201041527,0.00167,76737.0,76736.0,0.20388451]
[1731201043489,0.00167,76737.0,76736.0,0.16501766]
[1731201043953,0.00167,76737.0,76736.0,0.16497226]
[1731201044799,0.00167,76737.0,76736.0,0.15497226]
[1731201045004,0.00167,76737.0,76736.0,0.16497226]
[1731201046936,0.00167,76737.0,76736.0,0.16495831]
[1731201050506,0.00167,76737.0,76736.0,0.20377162]
[1731201051859,0.00167,76737.0,76736.0,0.22983162]
[1731201052069,0.00167,76737.0,76736.0,0.20377162]
[1731201053478,0.00167,76737.0,76736.0,0.20375305]
[1731201054200,0.00167,76737.0,76736.0,0.20875305]
[1731201054408,0.00167,76737.0,76736.0,0.41263378]
[1731201054563,0.00167,76737.0,76736.0,0.20875305]
[1731201055169,0.00167,76737.0,76736.0,0.26098032]
[1731201055942,0.00167,76737.0,76736.0,0.2609734]
[1731201056795,0.00167,76737.0,76736.0,0.20874613]
[1731201057029,0.00167,76737.0,76736.0,0.20374613]
[1731201057694,0.00167,76737.0,76736.0,0.20874613]
[1731201061426,0.673702,76749.0,76748.0,0.015]
[1731201061732,0.02818908,76779.0,76769.0,0.005]
[1731201061733,0.15438908,76779.0,76769.0,0.005]
[1731201061855,0.6819,76778.0,76776.0,0.005]
[1731201062055,0.6819,76787.0,76781.0,0.005]
[1731201062253,0.20388073,76786.0,76782.0,0.06304613]
[1731201062437,0.002,76782.0,76773.0,0.03888727]
[1731201062792,0.6819,76787.0,76770.0,0.01]
[1731201062793,0.002,76775.0,76774.0,0.06318374]
[1731201062995,0.20388073,76775.0,76774.0,0.06318941]
[1731201063530,0.20388073,76775.0,76774.0,0.11180522]
[1731201064785,0.6819,76781.0,76775.0,0.005]
[1731201065025,0.6819,76781.0,76776.0,0.11180522]
[1731201065232,0.6819,76781.0,76777.0,0.09682022]
[1731201065432,0.6819,76781.0,76775.0,0.04388579]
[1731201065433,0.73359067,76781.0,76778.0,0.06318941]
[1731201065658,0.73359067,76781.0,76779.0,0.06320025]
[1731201065804,0.73359067,76781.0,76780.0,0.06320025]
[1731201066464,0.75659067,76781.0,76780.0,0.06320025]
[1731201066670,0.85859067,76781.0,76780.0,0.06320025]
[1731201068050,0.85659067,76781.0,76780.0,0.06320025]
[1731201070459,0.83359067,76781.0,76780.0,0.06320025]
[1731201070839,0.73359067,76781.0,76780.0,0.06320025]
[1731201071216,0.73359067,76781.0,76780.0,0.10209271]
[1731201071882,0.73359067,76781.0,76780.0,0.06320025]
[1731201072240,0.73726067,76781.0,76780.0,0.10209271]
[1731201072457,0.73726067,76781.0,76780.0,0.06320025]
[1731201072721,0.85826067,76781.0,76780.0,0.06320025]
[1731201073061,0.86026067,76781.0,76780.0,0.06320025]
[1731201073756,0.93896067,76781.0,76780.0,0.06320025]
[1731201073988,0.93896067,76781.0,76765.0,0.03889246]
[1731201073989,0.002,76773.0,76765.0,0.03889246]
[1731201074220,0.023,76772.0,76766.0,0.048621]
[1731201074459,0.023,76772.0,76767.0,0.048621]
[1731201074664,0.023,76772.0,76759.0,0.04389246]
[1731201074665,0.20388073,76764.0,76759.0,0.005]
[1731201074885,0.20388073,76764.0,76760.0,0.04862448]
[1731201075096,0.20388073,76764.0,76761.0,0.04862448]
[1731201075306,0.20388073,76764.0,76762.0,0.04862448]
[1731201075515,0.20388073,76764.0,76763.0,0.04862448]
[1731201075734,0.20388073,76764.0,76763.0,0.04862877]
[1731201075735,0.20588073,76764.0,76763.0,0.04862877]
[1731201076357,0.20388073,76764.0,76763.0,0.04862877]
[1731201076842,0.20388073,76764.0,76759.0,0.005]
[1731201077288,0.20388073,76764.0,76756.0,0.005]
[1731201077716,0.20388073,76764.0,76757.0,0.005]
[1731201078152,0.20388073,76764.0,76756.0,0.005]
[1731201078153,0.68170287,76763.0,76756.0,0.005]
[1731201078398,0.68170287,76762.0,76756.0,0.005]
[1731201078601,0.68370287,76762.0,76756.0,0.005]
[1731201078911,0.002,76761.0,76756.0,0.005]
[1731201079108,0.68170287,76762.0,76756.0,0.005]
[1731201079515,0.68170287,76762.0,76750.0,0.03890302]
[1731201079516,0.20388073,76757.0,76750.0,0.03890302]
[1731201079743,0.20388073,76757.0,76750.0,0.005]
[1731201079744,0.20588073,76757.0,76750.0,0.005]
[1731201080073,0.20388073,76757.0,76750.0,0.005]
[1731201080454,0.20388073,76757.0,76749.0,0.005]
[1731201081108,0.20388073,76757.0,76749.0,0.01]
[1731201081338,0.20388073,76757.0,76749.0,0.005]
[1731201081564,0.20388073,76757.0,76749.0,0.01]
[1731201081753,0.20388073,76757.0,76749.0,0.005]
[1731201081986,0.20388073,76757.0,76749.0,0.01]
[1731201082197,0.20588073,76757.0,76749.0,0.01]
[1731201082367,0.20388073,76757.0,76749.0,0.01]
[1731201082570,0.68170287,76761.0,76753.0,0.005]
[1731201082778,0.68170287,76761.0,76759.0,0.005]
[1731201082993,0.68170287,76761.0,76760.0,0.0843]
[1731201083833,0.68170287,76761.0,76760.0,0.13295982]
[1731201084039,0.68170287,76766.0,76760.0,0.13295982]
[1731201084259,0.68170287,76766.0,76760.0,0.0843]
[1731201084632,0.68170287,76766.0,76765.0,0.03892583]
[1731201084633,0.68370287,76766.0,76765.0,0.03892583]
[1731201084896,0.68370287,76766.0,76758.0,0.03892583]
[1731201084897,0.023,76765.0,76758.0,0.03892583]
[1731201085073,0.023,76765.0,76757.0,0.03892583]
[1731201085482,0.68170287,76766.0,76760.0,0.005]
[1731201086307,0.73544277,76766.0,76760.0,0.005]
[1731201086937,0.87030124,76766.0,76760.0,0.005]
[1731201088013,0.87030124,76766.0,76759.0,0.005]
[1731201088263,0.13489477,76761.0,76759.0,0.005]
[1731201089871,0.13487516,76762.0,76759.0,0.005]
[1731201090100,0.68170287,76760.0,76759.0,0.005]
[1731201092267,0.68170287,76760.0,76736.0,0.010835]
[1731201092268,0.1,76757.0,76736.0,0.000835]
[1731201092542,0.13487516,76737.0,76736.0,0.005835]
[1731201092784,0.1,76755.0,76736.0,0.005835]
[1731201092785,0.13487516,76744.0,76742.0,0.005]
[1731201093014,0.05165809,76743.0,76742.0,0.005]
[1731201093269,0.1,76755.0,76742.0,0.005]
[1731201093503,0.15250962,76755.0,76742.0,0.005]
[1731201094214,0.15250962,76755.0,76738.0,0.005]
[1731201094215,0.15250962,76755.0,76744.0,0.005]
[1731201094456,0.15250962,76755.0,76746.0,0.005]
[1731201094457,0.05250962,76755.0,76746.0,0.005]
[1731201094701,0.1,76762.0,76746.0,0.005]
[1731201094899,0.05168982,76757.0,76746.0,0.005]
[1731201095180,0.1,76762.0,76746.0,0.005]
[1731201095181,0.023,76761.0,76746.0,0.005]
[1731201095841,0.1,76756.0,76746.0,0.005]
[1731201096757,0.1,76756.0,76746.0,0.005834]
[1731201097385,0.13487516,76757.0,76746.0,0.005834]
[1731201097609,0.09712758,76783.0,76755.0,0.0814]
[1731201097610,0.01357825,76778.0,76755.0,0.0814]
[1731201097825,0.13487516,76774.0,76758.0,0.005]
[1731201098027,0.13487516,76768.0,76758.0,0.005]
[1731201100511,0.13487516,76768.0,76760.0,0.005]
[1731201100855,0.13487516,76761.0,76760.0,0.005]
[1731201101656,0.13487516,76767.0,76760.0,0.005]
[1731201103625,0.68170287,76768.0,76762.0,0.0856]
[1731201103760,0.68170287,76774.0,76767.0,0.005]
[1731201104107,0.68170287,76774.0,76763.0,0.00760521]
[1731201104108,0.68170287,76774.0,76773.0,0.005]
[1731201104565,0.68170287,76774.0,76773.0,0.1312]
[1731201104972,0.001668,76780.0,76773.0,0.1412]
[1731201105195,0.001668,76780.0,76776.0,0.005]
[1731201105419,0.001668,76780.0,76777.0,0.005]
[1731201106064,0.001668,76780.0,76773.0,0.1362]
[1731201106065,0.001668,76780.0,76779.0,0.005]
[1731201108882,0.001668,76780.0,76778.0,0.005]
[1731201109015,0.001668,76780.0,76779.0,0.005]
[1731201109401,0.001668,76780.0,76778.0,0.005]
[1731201109601,0.001668,76780.0,76777.0,0.005]
[1731201110107,0.001668,76780.0,76778.0,0.005]
[1731201110334,0.001668,76780.0,76777.0,0.005]
[1731201110767,0.68337087,76780.0,76777.0,0.005]
[1731201111588,0.68337087,76780.0,76778.0,0.005]
[1731201111968,0.68337087,76780.0,76776.0,0.005]
[1731201112224,0.68337087,76780.0,76778.0,0.005]
[1731201112423,0.68337087,76780.0,76777.0,0.005]
[1731201112780,0.68337087,76780.0,76779.0,0.005]
[1731201113000,0.68337087,76780.0,76777.0,0.005]
[1731201113216,0.68337087,76780.0,76779.0,0.005]
[1731201113413,0.68337087,76780.0,76776.0,0.005]
[1731201113616,0.68337087,76780.0,76779.0,0.005]
[1731201113981,0.68337087,76780.0,76775.0,0.005]
[1731201115764,0.73734822,76780.0,76773.0,0.005]
[1731201115989,0.13487516,76775.0,76772.0,0.005]
[1731201116415,0.13487516,76775.0,76773.0,0.005]
[1731201116650,0.68170287,76774.0,76773.0,0.005]
[1731201118630,0.68170287,76774.0,76773.0,0.01]
[1731201120000,0.68170287,76774.0,76773.0,0.01007045]
[1731201120932,0.68170287,76774.0,76773.0,0.00507045]
[1731201121142,0.68170287,76774.0,76773.0,0.01007045]
[1731201121619,0.81657803,76774.0,76773.0,0.00507045]
[1731201121831,0.81657803,76774.0,76773.0,7.045e-05]
[1731201124951,1.00546756,76774.0,76773.0,7.045e-05]
[1731201125142,1.13046756,76774.0,76773.0,7.045e-05]
[1731201126543,1.26026756,76774.0,76773.0,7.045e-05]
[1731201126957,0.002,76765.0,76763.0,7.307e-05]
[1731201127158,0.23687516,76764.0,76763.0,7.307e-05]
[1731201127375,0.91857803,76764.0,76763.0,7.307e-05]
[1731201127580,0.91757803,76764.0,76763.0,7.307e-05]